bitfinex-derivatives/quotes_ETHF0:USTF0_20251211
["timestamp","ask_amount","ask_price","bid_price","bid_amount"]
[1765434544266,7.63234388,3196.5,3196.4,2.709834]
[1765434544762,4.81234388,3196.5,3196.4,4.149734]
[1765434545065,7.63234388,3196.5,3196.4,4.149734]
[1765434545363,7.63234388,3196.5,3196.4,1.226434]
[1765434545762,7.63234388,3196.5,3196.4,4.031534]
[1765434545968,4.81234388,3196.5,3196.4,4.031534]
[1765434546155,1.71254388,3196.5,3196.4,4.025534]
[1765434546556,4.81234388,3196.5,3196.4,4.025534]
[1765434546867,4.81234388,3196.5,3196.4,2.96951]
[1765434547069,4.81234388,3196.5,3196.4,4.118534]
[1765434547370,7.63234388,3196.5,3196.4,4.011734]
[1765434547568,7.63234388,3196.5,3196.4,4.003734]
[1765434547766,7.63234388,3196.5,3196.4,3.995734]
[1765434547967,7.63234388,3196.5,3196.4,3.987734]
[1765434548270,7.63234388,3196.5,3196.4,3.981734]
[1765434548473,7.63234388,3196.5,3196.4,3.481734]
[1765434548767,1.71254388,3196.5,3196.4,2.981734]
[1765434549172,4.81234388,3196.5,3196.4,2.981734]
[1765434549568,4.81234388,3196.5,3196.4,3.138144]
[1765434550363,1.71254388,3196.5,3196.4,3.138144]
[1765434551368,7.79774388,3196.5,3196.4,0.15641]
[1765434551566,7.79774388,3196.5,3196.4,2.671134]
[1765434552073,7.79774388,3196.5,3196.4,2.655134]
[1765434552268,7.79774388,3196.5,3196.4,0.14041]
[1765434552468,7.79774388,3196.5,3196.4,0.13241]
[1765434552664,7.79774388,3196.5,3196.4,0.12441]
[1765434552873,5.949,3196.3,3196.2,4.356824]
[1765434553374,5.949,3196.3,3196.2,2.484724]
[1765434553577,5.949,3196.3,3196.2,2.476724]
[1765434553875,5.949,3196.3,3196.2,2.468724]
[1765434554070,5.949,3196.3,3196.2,1.133024]
[1765434554272,5.949,3196.3,3196.2,1.125024]
[1765434554472,5.949,3196.3,3196.2,1.117024]
[1765434554675,5.949,3196.3,3196.2,1.273444]
[1765434554971,5.949,3196.3,3196.2,1.305444]
[1765434555676,5.949,3196.3,3196.2,1.295444]
[1765434556178,5.949,3196.3,3196.2,0.295444]
[1765434556577,5.949,3196.3,3196.2,1.305444]
[1765434557673,5.949,3196.3,3196.2,1.149024]
[1765434557878,5.949,3196.3,3196.2,1.251364]
[1765434559089,5.949,3196.3,3196.2,0.14642]
[1765434559388,5.949,3196.2,3196.1,1.149024]
[1765434559688,5.949,3196.2,3196.1,0.15642]
[1765434559890,5.949,3195.9,3195.8,3.2078]
[1765434560285,7.813,3195.5,3195.4,1.60456]
[1765434560482,7.813,3195.5,3195.4,1.305484]
[1765434560683,7.813,3195.5,3195.4,0.15646]
[1765434561490,7.813,3195.5,3195.4,1.305484]
[1765434561690,7.813,3195.5,3195.4,2.786184]
[1765434561987,7.813,3195.5,3195.4,1.305484]
[1765434562979,7.813,3195.5,3195.4,0.15646]
[1765434569592,5.8937,3195.1,3195.0,0.00259174]
[1765434569788,5.8937,3195.1,3195.0,0.15907174]
[1765434570288,5.8937,3195.1,3195.0,1.36227174]
[1765434571890,5.7244,3195.3,3195.2,2.3336]
[1765434573199,5.7244,3195.1,3195.0,2.43167174]
[1765434573792,5.7244,3195.1,3195.0,0.15907174]
[1765434573994,8.9322,3195.1,3195.0,0.15907174]
[1765434576103,5.7244,3195.1,3195.0,0.15907174]
[1765434576504,7.5884,3195.5,3195.4,1.20176]
[1765434576700,4.6583,3195.5,3195.4,3.36710119]
[1765434576904,4.6583,3195.5,3195.4,2.86710119]
[1765434577310,1.864,3195.5,3195.4,2.86710119]
[1765434577604,4.6583,3195.5,3195.4,3.02356119]
[1765434577801,1.864,3195.5,3195.4,3.02356119]
[1765434578601,4.6583,3195.5,3195.4,3.02356119]
[1765434579108,1.864,3195.5,3195.4,3.02356119]
[1765434579905,4.6583,3195.5,3195.4,3.02356119]
[1765434580106,7.5884,3195.5,3195.4,2.52386119]
[1765434580704,7.5884,3195.5,3195.4,0.15646]
[1765434582207,5.7244,3195.1,3195.0,0.00259174]
[1765434583008,5.7244,3195.3,3195.2,0.48916]
[1765434583209,5.7244,3195.3,3195.2,1.60920119]
[1765434583413,7.5884,3195.5,3195.4,0.48916]
[1765434583813,7.5884,3195.5,3195.4,0.15646]
[1765434584005,7.5884,3195.5,3195.4,0.45916]
[1765434585005,7.5884,3195.5,3195.4,0.76186]
[1765434585205,7.5884,3195.5,3195.4,0.45916]
[1765434585410,7.5884,3195.5,3195.4,0.44916]
[1765434585710,7.5884,3195.5,3195.4,0.13846]
[1765434585910,7.5884,3195.5,3195.4,0.38136]
[1765434586113,7.5884,3195.5,3195.4,0.62426]
[1765434586316,7.5884,3195.5,3195.4,0.38136]
[1765434587013,7.5884,3195.5,3195.4,0.37136]
[1765434587418,7.5884,3195.5,3195.4,0.36336]
[1765434587720,7.5884,3195.5,3195.4,0.35536]
[1765434588018,7.5884,3195.5,3195.2,1.12004119]
[1765434588417,1.847,3197.5,3196.4,0.15641]
[1765434588619,7.43694388,3196.5,3196.4,4.48425119]
[1765434588811,7.43694388,3196.5,3196.4,3.2078]
[1765434589016,7.43694388,3196.5,3196.4,4.32784119]
[1765434589214,1.847,3197.5,3196.7,3.52279]
[1765434589516,7.5714,3197.5,3197.4,3.52276]
[1765434589719,7.5714,3197.5,3197.4,4.64280119]
[1765434589922,1.847,3197.5,3197.4,4.64280119]
[1765434590313,1.85049399,3197.5,3197.4,4.64519192]
[1765434590719,1.85049399,3197.5,3197.4,3.52515073]
[1765434590918,0.00349399,3197.5,3197.4,3.36879073]
[1765434591517,0.00349399,3197.5,3197.4,3.52515073]
[1765434593223,1.85049399,3197.5,3197.4,3.52515073]
[1765434593524,0.00349399,3197.5,3197.4,3.52215073]
[1765434593712,0.00349399,3197.5,3197.4,3.51515073]
[1765434594117,0.00349399,3197.5,3197.4,3.51215073]
[1765434594318,0.00349399,3197.5,3197.4,3.50315073]
[1765434594519,0.00349399,3197.5,3197.4,3.49515073]
[1765434594916,0.00349399,3197.5,3197.4,3.48515073]
[1765434595120,0.00349399,3197.5,3197.4,3.47715073]
[1765434595322,0.00349399,3197.5,3197.4,3.46915073]
[1765434595821,0.00349399,3197.5,3197.4,3.45515073]
[1765434596221,0.00349399,3197.5,3197.4,3.44515073]
[1765434596424,0.00349399,3197.5,3197.4,3.43915073]
[1765434596722,0.00349399,3197.5,3197.4,3.43515073]
[1765434596918,0.00349399,3197.5,3197.4,3.42715073]
[1765434597223,0.00349399,3197.5,3197.4,3.42315073]
[1765434597428,0.00349399,3197.5,3197.4,3.41515073]
[1765434597623,0.00349399,3197.5,3197.4,3.40915073]
[1765434597924,0.00349399,3197.5,3197.4,3.40115073]
[1765434598930,0.00349399,3197.5,3197.4,3.39615073]
[1765434599224,0.00349399,3197.5,3197.4,3.38815073]
[1765434600529,1.82209399,3197.5,3197.4,3.38015073]
[1765434600718,4.97999399,3197.5,3197.4,3.38015073]
[1765434600915,1.82209399,3197.5,3197.4,3.37015073]
[1765434601121,0.00349399,3197.5,3197.4,3.36215073]
[1765434601320,0.00469365,3197.8,3197.7,4.25634]
[1765434601529,7.872,3198.5,3198.4,4.25631]
[1765434601724,1.847,3198.5,3198.4,4.25631]
[1765434601926,5.0049,3199.0,3198.9,4.19909]
[1765434602126,5.0049,3199.0,3198.9,3.69909]
[1765434602321,1.84935681,3199.0,3198.9,3.69909]
[1765434602528,0.00235681,3199.0,3198.9,8.71299622]
[1765434602730,0.00235681,3199.0,3198.9,8.99496314]
[1765434603131,0.00306994,3199.3,3199.2,2.48427]
[1765434603331,0.00306994,3199.3,3199.2,5.69207]
[1765434603530,3.2078,3201.4,3200.9,1.1503]
[1765434603731,7.8436,3201.0,3200.9,3.36399]
[1765434603929,7.8436,3201.0,3200.9,0.15619]
[1765434604135,6.025,3200.3,3200.2,3.451]
[1765434604332,3.1579,3200.3,3200.2,9.5352]
[1765434604536,7.8436,3200.5,3200.4,1.4382]
[1765434605143,7.8436,3200.5,3200.4,1.44207226]
[1765434605431,1.8186,3202.0,3200.5,1.4853]
[1765434605632,7.8436,3201.5,3201.4,1.64076]
[1765434605840,4.9765,3201.5,3201.4,3.09356]
[1765434606129,4.9765,3202.0,3201.9,1.4528]
[1765434606331,7.84628102,3202.0,3201.9,4.6526]
[1765434606529,6.025,3201.7,3201.6,0.00468611]
[1765434607039,7.8436,3201.5,3201.4,0.15616]
[1765434607539,7.8436,3201.5,3201.4,0.13486]
[1765434607729,7.8436,3201.5,3201.4,0.12686]
[1765434608132,7.8436,3201.5,3201.4,0.11686]
[1765434608447,7.8436,3201.5,3201.4,0.10886]
[1765434608744,7.8436,3201.5,3201.4,0.10086]
[1765434608939,7.8436,3201.5,3201.4,0.09286]
[1765434609245,8.96758301,3201.5,3201.4,0.08686]
[1765434609443,8.96758301,3201.5,3201.4,0.08086]
[1765434609738,8.96758301,3201.5,3201.4,1.48876]
[1765434609933,2.94258301,3201.5,3201.4,2.81226]
[1765434610133,6.10048301,3201.5,3201.4,2.7454]
[1765434610441,8.96758301,3201.5,3201.4,1.4139]
[1765434610633,8.96758301,3201.5,3201.4,0.15616]
[1765434611643,8.96758301,3201.5,3201.4,0.14416]
[1765434611940,8.96758301,3201.5,3201.4,0.13616]
[1765434612241,5.8838,3201.2,3201.1,3.21248611]
[1765434612540,7.00778301,3201.2,3201.1,3.19448611]
[1765434613039,7.00778301,3201.2,3201.1,3.18448611]
[1765434613233,7.00778301,3201.2,3201.1,3.17648611]
[1765434613429,1.12398301,3201.2,3201.1,3.16848611]
[1765434613634,7.00778301,3201.2,3201.1,0.15286611]
[1765434613836,7.00778301,3201.2,3200.7,3.2078]
[1765434614038,5.8838,3200.8,3200.7,3.2078]
[1765434614233,4.17768301,3200.8,3200.7,6.4028]
[1765434614432,1.12398301,3200.8,3200.7,6.4028]
[1765434614733,4.17768301,3200.8,3200.7,6.4028]
[1765434615040,7.00778301,3200.8,3200.7,4.8834]
[1765434616743,1.12398301,3200.8,3200.7,6.4]
[1765434618442,6.40231699,3200.8,3200.7,6.4]
[1765434618638,7.00778301,3200.8,3200.7,6.4]
[1765434618842,9.23241699,3200.8,3200.7,3.364]
[1765434619045,7.00778301,3200.8,3200.7,1.67786114]
[1765434619341,7.00778301,3200.8,3200.4,12.53555837]
[1765434619342,1.7548,3200.5,3200.4,12.53555837]
[1765434619537,2.87878301,3200.5,3200.4,12.53555837]
[1765434619732,8.76258301,3200.5,3200.4,4.76566837]
[1765434619939,1.12398301,3200.5,3200.4,6.63596837]
[1765434620343,0.78989301,3200.5,3200.4,9.99537618]
[1765434620544,0.13214301,3200.5,3200.4,9.99537618]
[1765434620738,1.7548,3201.0,3200.9,3.65609]
[1765434620938,7.7024,3201.5,3201.4,2.02436]
[1765434621241,1.8186,3201.5,3201.4,3.87256]
[1765434621539,4.8723,3201.5,3201.4,3.86856]
[1765434621845,7.7024,3201.5,3201.4,3.86056]
[1765434622046,4.8723,3201.5,3201.4,3.85056]
[1765434622346,4.8723,3201.5,3201.4,3.84456]
[1765434622646,4.8723,3201.5,3201.4,3.83656]
[1765434622842,7.7024,3201.5,3201.4,3.95796]
[1765434623044,4.8723,3201.5,3201.4,7.15776]
[1765434623246,7.7024,3201.5,3201.4,7.14976]
[1765434623539,7.7024,3201.5,3201.4,5.15216]
[1765434623744,7.7024,3201.5,3201.4,0.06816]
[1765434624043,5.8838,3201.3,3201.2,3.921]
[1765434624445,7.6386,3201.0,3200.9,7.28499]
[1765434624741,7.6386,3201.0,3200.9,3.36399]
[1765434627748,5.8838,3200.6,3200.5,3.36401]
[1765434628839,8.1114,3201.0,3200.9,0.15619]
[1765434629042,8.1114,3201.0,3200.9,3.14919]
[1765434629351,8.1114,3201.0,3200.9,6.34289]
[1765434629748,6.3566,3201.4,3201.3,3.14917]
[1765434630045,3.1362,3201.4,3201.3,6.36687]
[1765434630442,3.1362,3201.4,3201.3,6.35887]
[1765434630647,6.3566,3201.4,3201.3,6.35587]
[1765434631046,6.3566,3201.4,3201.3,3.12117]
[1765434631247,6.3566,3201.4,3201.3,3.11317]
[1765434631553,6.3566,3201.4,3201.3,3.10517]
[1765434631850,6.3566,3201.4,3201.3,0.10417]
[1765434632050,6.3566,3201.4,3201.3,0.10017]
[1765434632252,6.3566,3201.4,3201.3,0.09217]
[1765434632445,6.3566,3201.4,3201.3,0.08217]
[1765434632648,7.39707582,3201.4,3201.3,0.08217]
[1765434632952,6.3566,3200.6,3200.5,6.35701]
[1765434633452,6.3566,3200.6,3200.5,9.58271]
[1765434633753,8.2664,3201.0,3200.9,0.15619]
[1765434634052,9.29885675,3201.0,3200.9,3.14919]
[1765434634455,9.29885675,3201.0,3200.9,6.37489]
[1765434634750,2.94225675,3201.0,3200.9,6.37489]
[1765434634953,8.1752,3201.5,3201.4,3.14916]
[1765434635148,5.98051542,3201.5,3201.4,6.35686]
[1765434635449,0.00466093,3201.8,3201.3,1.64792984]
[1765434635450,0.00466093,3201.8,3201.7,6.36985]
[1765434635646,3.21048102,3202.0,3201.9,6.37484]
[1765434635846,8.26908102,3202.0,3201.9,3.14914]
[1765434636151,0.00268102,3202.0,3201.9,6.37184]
[1765434636354,6.344,3202.4,3202.3,2.64912]
[1765434636541,3.2078,3202.4,3202.3,7.17886984]
[1765434636744,2.89254,3202.4,3202.3,7.17886984]
[1765434636947,3.2078,3202.9,3202.8,6.2187]
[1765434637150,5.046,3203.0,3202.9,6.37479]
[1765434637354,8.26979,3203.0,3202.9,3.15161496]
[1765434637753,5.04939,3203.0,3202.9,6.37731496]
[1765434638050,8.26979,3203.0,3202.9,3.15161496]
[1765434638651,5.04939,3203.0,3202.9,6.37731496]
[1765434638854,8.26979,3203.0,3202.9,3.15161496]
[1765434639252,5.04939,3203.0,3202.9,3.15161496]
[1765434639448,8.26979,3203.0,3202.9,3.15161496]
[1765434639652,8.26979,3203.0,3202.9,0.15861496]
[1765434640454,8.26979,3203.0,3202.9,0.15561496]
[1765434640651,6.3566,3202.4,3202.3,1.64792984]
[1765434640850,6.3566,3202.4,3202.3,0.15612]
[1765434641254,6.3566,3202.4,3202.3,0.13512]
[1765434641451,6.3566,3202.4,3202.3,0.12512]
[1765434641655,6.3566,3202.4,3202.3,0.12107533]
[1765434643157,6.3566,3202.4,3202.3,3.10407533]
[1765434643354,6.3566,3202.4,3202.3,0.10307533]
[1765434643559,6.3566,3202.1,3202.0,9.16248611]
[1765434643751,6.3566,3202.1,3202.0,6.16948611]
[1765434643958,6.3566,3202.1,3202.0,6.32561611]
[1765434644659,6.3566,3202.1,3202.0,6.32938005]
[1765434644958,6.3566,3202.1,3202.0,3.37238005]
[1765434645459,6.3566,3202.1,3202.0,0.16458005]
[1765434645858,6.3566,3202.1,3201.6,3.2078]
[1765434646058,1.9098,3202.0,3201.9,6.37484]
[1765434646354,8.2664,3202.0,3201.9,0.15614]
[1765434646958,8.2664,3202.0,3201.9,0.15953596]
[1765434647957,1.9098,3202.0,3201.9,6.37823596]
[1765434648258,8.2664,3202.0,3201.9,0.15953596]
[1765434649362,8.2664,3202.0,3201.9,2.65253596]
[1765434649661,8.2664,3202.0,3201.9,2.80867596]
[1765434650164,3.14088611,3202.3,3202.2,6.37483]
[1765434650364,6.36128611,3202.3,3202.2,0.15856405]
[1765434650556,6.3566,3202.2,3202.1,4.64092984]
[1765434651566,6.3566,3202.2,3202.1,4.80004974]
[1765434651766,6.3566,3202.2,3202.1,1.80704974]
[1765434652359,6.3566,3202.2,3202.1,0.1591199]
[1765434652866,6.3566,3202.2,3201.7,1.64792984]
[1765434653062,6.3566,3201.8,3201.7,1.80407984]
[1765434653864,6.3566,3201.8,3201.7,4.80093583]
[1765434654165,3.1362,3201.8,3201.7,8.02663583]
[1765434654562,6.3566,3201.8,3201.7,1.80793583]
[1765434655360,6.3566,3201.8,3201.7,0.16000599]
[1765434657968,8.2664,3202.0,3201.9,3.14914]
[1765434658158,8.2664,3202.0,3201.9,5.74361495]
[1765434659071,8.2664,3202.0,3201.9,0.15614]
[1765434659365,8.2664,3202.0,3201.7,1.65178583]
[1765434659564,3.2622,3201.8,3201.7,8.48833583]
[1765434660067,8.5607,3202.0,3201.9,6.83654]
[1765434660268,8.5607,3202.0,3201.9,14.1043626]
[1765434660566,8.5607,3202.0,3201.9,7.4239626]
[1765434661465,8.5607,3202.0,3201.9,0.15614]
[1765434662466,6.6509,3201.9,3201.8,7.2678226]
[1765434663362,6.6509,3201.9,3201.8,10.6451226]
[1765434663562,6.6509,3201.9,3201.8,10.8012626]
[1765434664066,6.6509,3201.9,3201.8,0.15614]
[1765434666171,6.6509,3201.9,3201.8,7.43655167]
[1765434667571,6.6509,3201.9,3201.8,0.15614]
[1765434667970,6.6509,3201.9,3201.8,6.83654]
[1765434668272,3.2622,3201.9,3201.8,6.83654]
[1765434668473,6.6509,3201.9,3201.8,6.83654]
[1765434668975,6.6509,3201.9,3201.8,6.43864]
[1765434669473,3.2622,3201.9,3201.8,6.43864]
[1765434669670,3.2622,3201.9,3201.8,6.59478]
[1765434670869,1.9098,3202.0,3201.9,6.83654]
[1765434671180,5.172,3202.0,3201.9,6.83654]
[1765434671472,8.5607,3202.0,3201.9,6.83654]
[1765434672968,5.172,3202.0,3201.9,6.83654]
[1765434673275,6.30558611,3202.3,3202.2,6.31093]
[1765434673572,3.19208611,3202.3,3202.2,23.53565984]
[1765434673776,3.19208611,3202.3,3202.2,23.03565984]
[1765434673968,3.19208611,3202.3,3202.2,22.53565984]
[1765434674574,3.19208611,3202.3,3202.2,22.69178984]
[1765434674873,6.30090611,3202.3,3202.2,13.85996307]
[1765434675072,6.30090611,3202.3,3202.2,22.69878984]
[1765434676373,6.30090611,3202.3,3202.2,31.55690368]
[1765434676875,3.18740611,3202.3,3202.2,19.17290368]
[1765434677082,3.18740611,3202.3,3202.2,31.55690368]
[1765434677980,6.11e-06,3202.3,3202.2,26.25397368]
[1765434678180,5.10059,3203.0,3202.9,6.1648]
[1765434678380,5.10059,3203.0,3202.9,27.47997057]
[1765434678576,8.21409,3203.0,3202.9,27.47397057]
[1765434678981,8.21409,3203.0,3202.9,27.46597057]
[1765434679573,8.21409,3203.0,3202.9,27.62206057]
[1765434679776,8.21409,3203.0,3202.9,21.47126057]
[1765434680077,1.91319,3203.0,3202.9,27.63606057]
[1765434680277,0.00339,3203.0,3202.9,27.62606057]
[1765434680480,0.00339,3203.0,3202.9,27.61806057]
[1765434680681,0.00339,3203.0,3202.9,20.35281984]
[1765434680879,0.00339,3203.0,3202.9,20.34481984]
[1765434681081,0.00339,3203.0,3202.9,20.33681984]
[1765434681278,0.00339,3203.0,3202.9,20.32881984]
[1765434681482,5.17999,3203.0,3202.9,20.32881984]
[1765434681685,5.17999,3203.0,3202.9,20.32081984]
[1765434681985,1.99259,3203.0,3202.9,20.31281984]
[1765434682185,1.99259,3203.0,3202.9,19.81281984]
[1765434683282,1.99259,3203.0,3202.9,19.31281984]
[1765434684486,5.17999,3203.0,3202.9,19.31281984]
[1765434685387,1.99259,3203.0,3202.9,19.31281984]
[1765434685595,8.2107,3203.5,3203.4,0.15607]
[1765434685781,8.2107,3203.5,3203.4,12.53507]
[1765434685980,8.2107,3203.5,3203.4,12.52707]
[1765434686176,8.2107,3203.5,3203.4,12.02707]
[1765434686380,8.2107,3203.5,3203.4,12.18314]
[1765434686584,8.21471911,3203.5,3203.4,11.68314]
[1765434686780,8.21471911,3203.5,3203.4,11.67514]
[1765434686983,8.21471911,3203.5,3203.4,17.83194]
[1765434687182,9.5087,3203.9,3203.8,0.15605]
[1765434687584,9.5087,3203.9,3203.8,0.15405]
[1765434687882,9.5087,3203.9,3203.8,0.15005]
[1765434688083,9.5109993,3203.9,3203.8,0.14205]
[1765434688385,9.5109993,3203.9,3203.8,0.13405]
[1765434688581,9.5109993,3203.9,3203.8,0.12605]
[1765434688983,9.5109993,3203.9,3203.8,0.11805]
[1765434689180,9.5109993,3203.9,3203.8,0.11005]
[1765434689384,9.5109993,3203.9,3203.8,0.10205]
[1765434689779,9.5109993,3203.9,3203.8,0.09405]
[1765434689983,9.5109993,3203.9,3203.8,0.08805]
[1765434690185,9.5109993,3203.9,3203.8,0.08205]
[1765434690490,9.5109993,3203.9,3203.8,0.07905]
[1765434690690,9.5109993,3203.9,3203.8,0.07105]
[1765434690893,9.5109993,3203.9,3203.8,0.06505]
[1765434691085,6.3031993,3203.9,3203.8,0.06505]
[1765434691286,6.9483,3203.6,3203.5,16.02248611]
[1765434691486,6.9483,3203.6,3203.5,12.37668611]
[1765434691686,6.9483,3203.6,3203.5,12.36668611]
[1765434691893,6.9483,3203.6,3203.5,12.35868611]
[1765434692090,6.9483,3203.6,3203.5,15.99948611]
[1765434692289,6.9483,3203.6,3203.5,3.6448]
[1765434692490,6.9483,3203.6,3203.5,3.79286]
[1765434692690,6.9483,3203.6,3203.5,16.15386]
[1765434693995,6.9483,3203.6,3203.5,16.14586]
[1765434694396,6.9483,3203.6,3203.5,16.13786]
[1765434694596,6.9483,3203.6,3203.5,19.52986]
[1765434695999,6.9483,3203.6,3203.5,19.52086]
[1765434696198,6.9483,3203.6,3203.5,19.51286]
[1765434696499,6.9483,3203.6,3203.5,19.50486]
[1765434697294,6.9483,3203.6,3203.5,12.52706]
[1765434697798,6.9483,3203.6,3203.5,12.51206]
[1765434697995,6.9483,3203.6,3203.5,12.01206]
[1765434698297,6.9483,3203.6,3203.5,11.51206]
[1765434698499,6.9483,3203.3,3203.2,17.52411008]
[1765434698698,6.9483,3203.3,3203.2,29.88911008]
[1765434698894,6.9483,3203.5,3203.4,7.0448]
[1765434700299,6.9483,3203.5,3203.4,6.5448]
[1765434700494,6.9483,3203.5,3203.4,6.70087]
[1765434701397,8.9783,3203.5,3203.4,0.15607]
[1765434701700,8.9783,3203.5,3203.4,0.14007]
[1765434701900,8.9783,3203.5,3203.4,0.13207]
[1765434703295,8.9783,3203.5,3203.4,3.76687]
[1765434703592,8.9783,3203.5,3203.4,3.75887]
[1765434703800,3.3774,3203.4,3203.3,14.46769397]
[1765434704100,10.16308541,3203.9,3203.8,0.14205]
[1765434704399,10.16308541,3203.9,3203.8,0.13805]
[1765434704601,10.16308541,3203.9,3203.8,0.12905]
[1765434704799,6.95528541,3203.9,3203.4,7.26682397]
[1765434705002,6.95528541,3203.9,3203.8,3.1448]
[1765434705199,6.95528541,3203.9,3203.8,3.30085]
[1765434705401,6.95528541,3203.9,3203.8,2.92185]
[1765434705598,6.95528541,3203.9,3203.8,19.56485]
[1765434706191,0.00698541,3203.9,3203.8,19.56485]
[1765434706395,10.1561,3204.3,3204.2,7.20083]
[1765434707203,10.1561,3204.3,3204.2,14.46765397]
[1765434707405,10.15966793,3204.3,3204.2,14.47121288]
[1765434707698,3.21136793,3204.3,3204.2,14.47121288]
[1765434708294,6.58876793,3204.3,3204.2,14.47121288]
[1765434708501,6.58876793,3204.3,3204.2,7.20438891]
[1765434709204,0.00356793,3204.3,3204.2,7.20438891]
[1765434709698,3.38096793,3204.3,3204.2,7.19438891]
[1765434709905,6.95186793,3204.3,3204.2,0.14958891]
[1765434710105,10.15966793,3204.3,3204.2,0.14158891]
[1765434710299,0.00356793,3204.3,3204.2,10.05021891]
[1765434710701,0.00356793,3204.3,3204.2,16.05021891]
[1765434710907,3.3774,3204.3,3204.2,13.95615732]
[1765434711102,3.3774,3204.3,3204.2,22.77763]
[1765434711305,6.9483,3204.7,3204.6,3.80081]
[1765434711602,6.9483,3204.7,3204.6,3.30681]
[1765434711797,6.95134512,3204.7,3204.6,3.30993707]
[1765434712002,6.95134512,3204.7,3204.6,12.52713707]
[1765434712402,6.95134512,3204.7,3204.6,0.15913707]
[1765434713003,6.95134512,3204.7,3204.6,0.14913707]
[1765434713205,6.95134512,3204.7,3204.6,0.14113707]
[1765434713606,6.95134512,3204.7,3204.6,0.13313707]
[1765434714111,0.00304512,3204.7,3204.6,7.18029933]
[1765434714304,6.95134512,3204.7,3204.6,3.78029933]
[1765434714609,6.95134512,3204.7,3204.6,0.13549933]
[1765434714909,6.95134512,3204.7,3204.6,0.12549933]
[1765434715110,6.95134512,3204.7,3204.6,0.11749933]
[1765434715503,6.95134512,3204.7,3204.6,0.10949933]
[1765434715708,6.95134512,3204.7,3204.6,0.10249933]
[1765434716009,6.95134512,3204.7,3204.6,0.09549933]
[1765434716309,6.95134512,3204.7,3204.6,0.08749933]
[1765434716506,6.95134512,3204.7,3204.6,0.07949933]
[1765434716703,6.95134512,3204.7,3204.6,0.07149933]
[1765434716911,8.9783,3204.0,3203.9,14.7398]
[1765434717509,8.9783,3204.0,3203.9,16.0118]
[1765434718004,8.9783,3204.0,3203.9,3.80465774]
[1765434718199,8.9783,3204.0,3203.9,0.15985774]
[1765434718405,6.6835,3203.9,3203.8,10.62272397]
[1765434719004,6.6835,3203.9,3203.8,7.42287397]
[1765434719402,6.6835,3203.9,3203.8,0.15989015]
[1765434720413,6.6835,3203.9,3203.8,6.85379015]
[1765434720810,6.6835,3203.9,3203.8,6.35379015]
[1765434721413,9.8913,3204.3,3204.2,6.84993]
[1765434721713,9.8913,3204.3,3204.2,6.35329274]
[1765434722215,6.4815,3204.3,3204.2,6.50932274]
[1765434722415,0.00304512,3204.7,3204.2,6.50932274]
[1765434722416,6.68654512,3204.7,3204.6,6.84991]
[1765434722812,0.00304512,3204.7,3204.6,6.83991]
[1765434723416,0.00304512,3204.7,3204.6,6.83291]
[1765434724713,3.2078,3205.2,3205.1,6.84988]
[1765434725011,3.2078,3205.2,3205.1,19.22088]
[1765434725217,3.2078,3205.2,3205.1,19.21888]
[1765434725418,9.8913,3205.2,3205.1,19.21088]
[1765434725717,9.8942642,3205.2,3205.1,19.20288]
[1765434725918,6.4844642,3205.2,3205.1,19.47801046]
[1765434726117,0.0029642,3205.2,3205.1,22.67781046]
[1765434726314,6.6835,3205.7,3205.6,6.6939]
[1765434726614,6.6835,3205.7,3205.6,6.6849]
[1765434727013,6.6835,3205.7,3205.6,6.1849]
[1765434727216,6.6835,3205.7,3205.6,5.6849]
[1765434727516,6.68579472,3205.7,3205.6,0.15596]
[1765434727711,6.68579472,3205.7,3205.6,3.50586]
[1765434727915,0.00229472,3205.7,3205.6,6.84386]
[1765434728116,6.6835,3206.4,3206.3,3.51182]
[1765434728616,6.6835,3206.4,3206.3,3.50582]
[1765434728814,11.9257,3206.5,3206.4,6.84182]
[1765434729018,11.9257,3206.5,3206.4,3.50382]
[1765434729323,11.92902423,3206.5,3206.4,0.15292]
[1765434729619,11.92902423,3206.5,3206.4,0.14492]
[1765434729918,11.92902423,3206.5,3206.4,6.83082]
[1765434730114,3.2078,3207.7,3206.9,0.15589]
[1765434730317,3.2737,3207.1,3207.0,6.6939]
[1765434730521,6.6835,3207.1,3207.0,15.5219]
[1765434730818,6.6835,3207.1,3207.0,15.5139]
[1765434731017,6.898,3207.1,3207.0,18.8439]
[1765434731314,6.9013186,3207.1,3207.0,15.65707197]
[1765434731516,6.9013186,3207.1,3207.0,3.48107197]
[1765434731819,6.9013186,3207.1,3207.0,19.28857197]
[1765434732315,0.0033186,3207.1,3207.0,19.27457197]
[1765434732820,0.0033186,3207.1,3207.0,21.25487197]
[1765434733518,0.0033186,3207.1,3207.0,21.25287197]
[1765434733922,0.0033186,3207.1,3207.0,21.24487197]
[1765434734114,0.0033186,3207.1,3207.0,21.23487197]
[1765434734822,0.0033186,3207.1,3207.0,24.58502924]
[1765434735120,0.0033186,3207.1,3207.0,12.19002924]
[1765434735423,0.0033186,3207.1,3207.0,24.58002924]
[1765434735616,0.0033186,3207.1,3207.0,24.57602924]
[1765434735811,0.0033186,3207.1,3207.0,10.20572924]
[1765434736015,6.9013186,3207.1,3207.0,15.82007197]
[1765434736224,6.9013186,3207.1,3207.0,19.24257197]
[1765434736416,3.3515186,3207.1,3207.0,19.23457197]
[1765434736916,0.0033186,3207.1,3207.0,18.23457197]
[1765434738422,6.9013186,3207.1,3207.0,14.81207197]
[1765434739022,6.9013186,3207.1,3207.0,5.84757197]
[1765434739223,6.9013186,3207.1,3207.0,2.41907197]
[1765434739523,6.9013186,3207.1,3207.0,2.41107197]
[1765434739823,6.9013186,3207.1,3207.0,2.40307197]
[1765434740025,10.1091186,3207.1,3207.0,0.15917197]
[1765434740217,10.1091186,3207.1,3207.0,0.15117197]
[1765434740624,10.1091186,3207.1,3207.0,0.14317197]
[1765434740826,10.1091186,3207.1,3207.0,0.13517197]
[1765434741020,10.1091186,3207.1,3207.0,0.12717197]
[1765434741220,10.1091186,3207.1,3207.0,0.12987553]
[1765434741525,10.1091186,3207.1,3207.0,0.12187553]